Cogmind - Beta 13 @@@ ROGUE MODE // 2024.05.20 @ 13:28:31 Player: hanzu Result: Destroyed by TV-ZB1(R) with Subdweller Laser Performance ------------- Evolutions (0) 0 Regions Visited (2) 400 Robots Destroyed (32) 160 Value Destroyed (650) 650 Prototype IDs (4) 80 Alien Tech Used (0) 0 Bonus (-55) -55 TOTAL SCORE: 1235 Bonus ------- Friendly Fire -55 Cogmind --------- Core Integrity 0/250 Matter 282/300 Energy 40/100 System Corruption 1% Temperature Cool (6) Movement Walking (190) Ox1 Location -10/Subcaves Parts ------- > --- POWER (1) -------- (None) > --- PROPULSION (2) --- Aluminum Leg Aluminum Leg > --- UTILITY (2) ------ Improved Heat Sink Large Storage Unit > --- WEAPON (2) ------- Particle Cannon Particle Cannon > --- INVENTORY (15) --- Aluminum Leg High-capacity Storage Unit Machine Analyzer Hacking Suite Autogun Autogun Light Cannon Rocket Launcher Rocket Launcher Peak State ------------ > --- POWER ------------ Light Ion Engine > --- PROPULSION ------- Aluminum Leg Carbon-fiber Leg > --- UTILITY ---------- Improved Heat Sink Large Storage Unit > --- WEAPON ----------- Particle Cannon Barrage Gun > --- INVENTORY -------- Aluminum Leg Aluminum Leg Aluminum Leg High-capacity Storage Unit Machine Analyzer Hacking Suite Particle Cannon Autogun Autogun Light Cannon Rocket Launcher Rocket Launcher [Rating: 16] Favorites ----------- Power Light Ion Engine Engine Light Ion Engine Propulsion Aluminum Leg Leg Aluminum Leg Utility Small Storage Unit Device Seismic Detector Storage Small Storage Unit Processor Targeting Computer Weapon Light Assault Rifle Energy Cannon Particle Cannon Ballistic Gun Light Assault Rifle Ballistic Cannon Light Cannon Build | -11 -10 -10 ------- Run | Yrd Mat Sub Slots Evolved . | . . . Power . | . . . Propulsion . | . . . Utility . | . . . Weapon . | . . . Parts Attached 29 | 7 10 12 Power 3 | 1 1 1 Engine 3 | 1 1 1 Core . | . . . Reactor . | . . . Propulsion 6 | 2 1 3 Treads . | . . . Leg 6 | 2 1 3 Wheel . | . . . Hover . | . . . Flight . | . . . Utility 8 | 2 2 4 Device 5 | 1 . 4 Storage 2 | 1 1 . Processor 1 | . 1 . Hackware . | . . . Protection . | . . . Artifact . | . . . Weapon 12 | 2 6 4 Energy Gun . | . . . Energy Cannon 2 | . . 2 Ballistic Gun 7 | 2 4 1 Ballistic Cannon 3 | . 2 1 Launcher . | . . . Special Weapon . | . . . Impact Weapon . | . . . Slashing Weapon . | . . . Piercing Weapon . | . . . Special Melee Weapon . | . . . Unidentified Prototypes . | . . . Parts Lost 7 | . 1 6 Power 2 | . . 2 Propulsion 2 | . . 2 Utility . | . . . Weapon 3 | . 1 2 Highest Loss Streak 3 | . 1 3 To Critical Strikes . | . . . Average Slot Usage (%) 99 | . 99 99 Engine 13 | . 14 13 Leg 27 | . 27 27 Device 7 | . 3 10 Storage 14 | . 14 14 Processor 6 | . 10 2 Energy Cannon 4 | . . 8 Ballistic Gun 21 | . 25 16 Ballistic Cannon 2 | . 1 2 Naked Turns . | . . . Heaviest Build 33 | 11 31 33 Greatest Support 25 | 20 20 25 Greatest Overweight (x) 1 | . 1 1 Average Overweight (x) . | . . 1 Largest Inventory Capacity 15 | 8 15 15 Average Capacity 10 | 7 12 15 Most Carried 15 | 4 15 15 Average Carried 6 | 3 10 12 Final Capacity 15 | 8 15 15 Final Carried 15 | 4 15 9 Class Distribution -------------------- 100% | Mutant Dominant Class ---------------- Mutant | -10/Materials Mutant | -10/Subcaves Resources | -11 -10 -10 ----------- Run | Yrd Mat Sub Matter Collected 1144 | 356 368 420 Remotely . | . . . Salvage Created 830 | 177 403 250 Parts 64 | 14 35 15 Haulers Intercepted 1 | . 1 . Recyclers Shooed 1 | . 1 . Parts Field Recycled . | . . . Retrieved Matter . | . . . Parts Self-Destructed 3 | . . 3 Prevented . | . . . Kills | -11 -10 -10 ------- Run | Yrd Mat Sub Combat Hostiles Destroyed 18 | . 11 7 Guns 14 | . 11 3 Cannons 4 | . . 4 Classes Destroyed 11 | 3 6 2 Worker 2 | 2 . . Tunneler 5 | 5 . . Hauler 1 | . 1 . Recycler 1 | 1 . . Mechanic 1 | . 1 . Operator 1 | . 1 . Watcher 3 | . 3 . Swarmer 6 | . 6 . Grunt 5 | . 5 . Sentry 1 | . . 1 Subdweller 6 | . . 6 Best Kill Streak 7 | 4 7 2 Combat Bots Only 5 | . 5 2 Max Kills in Single Turn 1 | 1 1 1 Gunslinging . | . . . Exploded . | . . . Melee . | . . . Uniques/NPCs Destroyed . | . . . Combat | -11 -10 -10 -------- Run | Yrd Mat Sub Hostile Shots Fired 137 | . 71 66 Missed 36 | . 18 18 Damage Taken 1513 | . 485 1028 Core 271 | . 112 159 Absorbed by Shields . | . . . Regen/Repaired (Parts) 37 | . 37 . Core Remaining (%) 100 | 100 . . Volleys Fired 145 | 43 55 47 Largest 2 | 2 2 2 Hottest 136 | 40 70 136 Shots Fired 289 | 86 112 91 Gun 237 | 86 102 49 Cannon 52 | . 10 42 Launcher . | . . . Special . | . . . Kinetic 274 | 86 112 76 Thermal 15 | . . 15 Explosive . | . . . Electromagnetic . | . . . Robot Hit Streak 12 | 6 12 12 Robot Miss Streak 3 | 3 3 2 Penetration Max . | . . . Secondary Targets 3 | . 2 1 Max Gunslinging Chain 1 | . 1 1 Shots Hit Robots 188 | 49 70 69 Core Hits 61 | 18 26 17 Critical Kills 1 | . 1 . Critical Parts Destroyed 1 | 1 . . Critical Strikes 2 | 1 1 . Destroy 2 | 1 1 . Melee Attacks . | . . . Impact . | . . . Slashing . | . . . Piercing . | . . . Sneak Attacks . | . . . Combat Hostiles . | . . . Follow-up Attacks . | . . . Damage Inflicted 2485 | 413 870 1202 Guns 1773 | 413 762 598 Cannons 712 | . 108 604 Explosions . | . . . Melee . | . . . Ramming . | . . . Kinetic 2174 | 413 870 891 Thermal 311 | . . 311 Explosive . | . . . Electromagnetic . | . . . Impact . | . . . Slashing . | . . . Piercing . | . . . Highest Corruption 1 | . 1 1 Average Corruption 1 | . 1 1 Corruption Purged . | . . . Corruption Blocked . | . . . Effects 17 | . 7 10 Message Errors 7 | . 1 6 Matter Fused 2 | . 1 1 Heat Flow Errors 3 | . 2 1 Energy Discharges 2 | . 1 1 Misfires 3 | . 2 1 Overload Shots . | . . . Overflow Damage 9 | . 9 . Projectiles 9 | . 9 . Explosions . | . . . Melee . | . . . Knockbacks 8 | . 1 7 Impact . | . . . Kinetic 8 | . 1 7 Secondary . | . . . Self-Inflicted Damage . | . . . Shots . | . . . Rammed . | . . . Targets Rammed . | . . . Kicked . | . . . Crushed . | . . . Highest Temperature 172 | . 172 60 Average Temperature 31 | . 31 34 Received Heat Transfer 300 | . 108 192 Siege Activations . | . . . Robots Corrupted . | . . . Combat Hostiles . | . . . Parts Fried . | . . . Impact Corruptions . | . . . Robots Melted . | . . . Combat Hostiles . | . . . Parts Melted . | . . . Heat Transferred 555 | . . 555 Parts Sabotaged . | . . . Parts Stolen . | . . . Parts Stripped . | . . . Power Chain Reactions . | . . . Alert | -11 -10 -10 ------- Run | Yrd Mat Sub Peak Influence 271 | 40 271 . Initial . | . . . Average 19 | 2 70 . Maximum Alert Level 1 | . 1 . Low Security (%) 97 | 100 89 . Level 1 2 | . 10 . Level 2 . | . . . Level 3 . | . . . Level 4 . | . . . Level 5 . | . . . High Security . | . . . Max Security . | . . . Squads Dispatched 1 | . 1 . Investigation . | . . . Extermination . | . . . Reinforcement 1 | . 1 . Assault . | . . . Garrison . | . . . Intercept . | . . . Searches Triggered . | . . . Construction Impeded . | . . . Haulers Reinforced . | . . . Active Scanning Responses . | . . . Cargo Convoy Interrupts . | . . . Stealth | -11 -10 -10 --------- Run | Yrd Mat Sub Distress Signals 1 | . 1 . Communications Jammed . | . . . Distress Signals . | . . . Times Spotted 34 | . 17 17 Peak Tracking Total 6 | . 6 5 Tactical Retreats . | . . . Traps | -11 -10 -10 ------- Run | Yrd Mat Sub Traps Triggered 1 | . 1 . Indirectly . | . . . Trap Hack Attempts . | . . . Triggered . | . . . Disarmed . | . . . Reprogrammed 6 | . 6 . Reused . | . . . Traps Extracted . | . . . Installed . | . . . Triggered . | . . . Machines | -11 -10 -10 ---------- Run | Yrd Mat Sub Machines Disabled . | . . . Max in Single Turn . | . . . Machines Repaired . | . . . Machines Dismantled . | . . . Machines Sabotaged . | . . . Overloaded Fab Kills . | . . . Hacking | -11 -10 -10 --------- Run | Yrd Mat Sub Machines Accessed 8 | . 8 . Terminals 6 | . 6 . Fabricators . | . . . Repair Stations 1 | . 1 . Recycling Units 1 | . 1 . Scanalyzers . | . . . Garrison Access . | . . . Total Hacks 25 | . 25 . Successful 18 | . 18 . Failed 6 | . 6 . Catastrophic . | . . . Database Lockouts 1 | . 1 . Manual 15 | . 15 . Terminals 20 | . 20 . Fabricators . | . . . Repair Stations 4 | . 4 . Recycling Units 1 | . 1 . Scanalyzers . | . . . Garrison Access . | . . . Terminal Hacks 9 | . 9 . Robot Analysis 3 | . 3 . Prototype ID Bank 2 | . 2 . Alert Level 1 | . 1 . Unreport Threat 1 | . 1 . Locate Traps 1 | . 1 . Reprogram Traps 1 | . 1 . Fabricator Hacks . | . . . Repair Station Hacks 2 | . 2 . Scan Component 1 | . 1 . Repair 1 | . 1 . Recycling Unit Hacks . | . . . Scanalyzer . | . . . Garrison Access Hacks . | . . . Unauthorized Hacks 7 | . 7 . Terminals 5 | . 5 . Track 1 | . 1 . Botnet 3 | . 3 . Operators 1 | . 1 . Fabricators . | . . . Repair Stations 1 | . 1 . Mechanics 1 | . 1 . Recycling Units 1 | . 1 . Recyclers 1 | . 1 . Scanalyzers . | . . . Garrison Access . | . . . Data Cores Recovered . | . . . Used . | . . . Hacking Detections 6 | . 6 . Full Trace Events . | . . . Feedback Events . | . . . Feedback Blocked . | . . . Robot Schematics Acquired . | . . . Robots Built . | . . . Authchips . | . . . Time . | . . . Total Robot Build Rating . | . . . Part Schematics Acquired . | . . . Parts Built . | . . . Authchips . | . . . Time . | . . . Total Part Build Rating . | . . . Parts Repaired 1 | . 1 . Time 26 | . 26 . Parts Recycled . | . . . Recycled Matter . | . . . Retrieved Matter . | . . . Retrieved Components . | . . . Parts Scanalyzed . | . . . Part Schematics Acquired . | . . . Parts Damaged . | . . . Bothacking | -11 -10 -10 ------------ Run | Yrd Mat Sub Used RIF Installer . | . . . Robots Hacked . | . . . Non-combat . | . . . Combat . | . . . Robot Hacks Applied . | . . . Relay Couplers Released . | . . . Fabnet Peak Effective % . | . . . Robots Rewired . | . . . Allies Hacked . | . . . Hacks Repelled . | . . . Allies | -11 -10 -10 -------- Run | Yrd Mat Sub Total Allies . | . . . Largest Group . | . . . Highest-Rated Group . | . . . Highest-Rated Ally . | . . . Total Orders . | . . . Ally Attacks . | . . . Total Damage . | . . . Kills . | . . . Allies Corrupted . | . . . Allies Melted . | . . . Intel | -11 -10 -10 ------- Run | Yrd Mat Sub Robot Analysis Total 3 | . 3 . Derelict Logs Recovered . | . . . Drone Launches . | . . . Drone Recoveries . | . . . Exploration | -11 -10 -10 ------------- Run | Yrd Mat Sub Turns Passed 7579 | 4579 1564 1436 Spaces Moved 2198 | 892 636 670 Core 14 | 14 . . Treads . | . . . Legs 2184 | 878 636 670 Wheels . | . . . Hover . | . . . Flight . | . . . Fastest Speed 50 | 50 120 190 Average Speed 153 | 118 163 190 Slowest Speed 190 | 120 190 190 Overloaded Moves . | . . . Propulsion Burnouts . | . . . Robots Hopped . | . . . Cave-ins Triggered . | . . . Exploration Rate (%) 71 | 68 97 49 Regions Visited 2 Branch Regions 1 Pre-discovered Areas . | . . . Known Exits Taken . | . . . Unknown Exits Taken 2 | 1 1 . Scrap Searched 1 | . . 1 Spaces Dug . | . . . Terrain Destroyed . | . . . Melee . | . . . Projectile . | . . . AOE . | . . . Terrain Rammed . | . . . Walls Destroyed . | . . . Machines Disabled . | . . . Actions | -11 -10 -10 --------- Run | Yrd Mat Sub Total 6154 | 4338 1064 752 Wait 3743 | 3393 334 16 Move 2196 | 891 635 670 Hop . | . . . Pick Up 21 | 4 17 . Fast Attach 18 | 7 6 5 Attach 7 | . 1 6 Detach 1 | . 1 . Swap 4 | . 3 1 Drop 19 | . 12 7 Fire 145 | 43 55 47 Melee . | . . . Ram . | . . . Kick . | . . . Crush . | . . . Escape Stasis . | . . . Rewire . | . . . Trap . | . . . Miscellaneous . | . . . Route ------- -11/Scrapyard -10/Materials (discovered 5 exits: [*Mat x3] / [*Min] / [*Sub]) -10/Subcaves (discovered 1 exit: [*Mat]) History --------- Turn | Location | Event 34 | -11/Scrapyard | Discovered new exit (range 15) 4580 | -11/Scrapyard | Entered Materials 4581 | -10/Materials | Build established: Mutant 4591 | -10/Materials | Central database locked down 4735 | -10/Materials | Repaired Aluminum Leg 4857 | -10/Materials | Discovered new exit (range 15) 5029 | -10/Materials | Discovered new exit (range 15) 5363 | -10/Materials | Discovered new exit (range 5) 5620 | -10/Materials | Discovered new exit (range 4) 6116 | -10/Materials | Discovered new exit (range 7) 6144 | -10/Materials | Entered Subcaves 6432 | -10/Subcaves | Discovered new exit (range 9) 6447 | -10/Subcaves | Ambushed by swarm of Subdwellers 6450 | -10/Subcaves | Ambushed by Subdwellers from Twisted Machinery 6450 | -10/Subcaves | Ambushed by Subdwellers from Twisted Machinery 6460 | -10/Subcaves | Core integrity fell below 50% 6504 | -10/Subcaves | Lost 4 allies 6565 | -10/Subcaves | Ambushed by angry Subdweller bent on revenge 6631 | -10/Subcaves | Shifting Twisted Machinery released Flamer 6728 | -10/Subcaves | Core integrity fell below 20% 7580 | -10/Subcaves | Destroyed by TV-ZB1(R) with Subdweller Laser Last Messages --------------- 06657_ Y-45 Defender destroyed. 06664_ Heat Sink fries itself beyond repair. 06667_ Hvy. Assault Rifle fries itself beyond repair. 06669_ Acquired 51 matter. 06714_ Dropped Lgt. Cannon. 06718_ Aluminum Leg destroyed. 06719_ 2D-8W2(R) destroyed. 06730_ GJ-DCB(R) affixes Scrap Shield Fragment to Scrap Shield. 06738_ GJ-DCB(R) destroyed. 06741_ Acquired 31 matter. 06743_ Acquired 43 matter. 07089_ VGCTO20HNHLOWC6,KYGYKONDT#B 07119_ 07413_ YUE=E2C=NFGLSZAG=KO0QK 6:QOZFBIUCVDQIWI 07565_ Carbon-fiber Leg destroyed. 07572_ Lgt. Ion Engine destroyed. 07573_ Barrage Gun destroyed. Map ----- +----------------------------------------------------+ | ??????????????# #???????????????????? | | ??????????????# ##??????????????????? | | ??????????????# ##?????????????????? | | ??????????????# #?????????????????? | | ??????????????# #?????????????????? | | ?????????????## ####?????????????????? | | ?????????????# ##????????????????????? | | ?????????????### ##?????????????????????? | | ??????????#??# #" #??????????????????????? | | ??????????#$?# #??????????????????????? | | ??????????#" # #" #??????????????????????? | | ???????????# "## ##?????????????????????? | | ???????????#### #?????????????????????? | | ?????????????## #?????????????????????? | | ?????????????# #?????????????????????? | | ????????????## ##????????????????????? | | ???????????## ##???????????????????? | | ???????????# ##??????????????????? | | ???????????## #####??????????????? | | ????????????### #??????????????? | | ??????????????# = #??????????????? | | ?????????????# !% ### #??????????????? | | ????????????# * ### #??????????????? | | ??????????# ##### ##??????????????? | | ?????????# #???## #???????????????? | | ?????????# ## ?????#@ #???????????????? | | ?????????# ? ????# #???????????????? | | ?????????# ? ????#RR #???????????????? | | ?????????# ? ???? ???????????????? | | ?????????# ?###??? #??????????????? | | ?????????? #?????? ##??????????????? | | ????????????????????? #####???????????????? | | ???????????????????? ????????????????????? | | ???????????????????####????????????????????? | | ???????????????????????????????????????????? | | ???????????????????????????????????????????? | | ???????????????????????????????????????????? | | ???????????????????????????????????????????? | | ???????????????????????????????????????????? | | ???????????????????????????????????????????? | | ???????????????????????????????????????????? | | ???????????????????????????????????????????? | | ???????????????????????????????????????????? | | ???????????????????????????????????????????? | | ???????????????????????????????????????????? | | ???????????????????????????????????????????? | | ???????????????????????????????????????????? | | ???????????????????????????????????????????? | | ???????????????????????????????????????????? | | ???????????????????????????????????????????? | +----------------------------------------------------+ Best States ------------- Heat Dissipation 39 Coolant Potential 50 Energy Generation 10 Energy Capacity 250 Matter Stores 300 Matter Capacity 300 Sight Range 21 Terrain Scan Density 10 Evasion (%) 55 Targeting Accuracy 5 Item Schematics ----------------- None Robot Schematics ------------------ None Fabricated ------------ Nothing Alien Tech Used ----------------- None Achievements -------------- None Challenges ------------ None Game ------ Seed PulseRecyclingStick Manual? 0 Play Time 00:24:23 Cumulative 178.3 hours Start 2024.05.20 @ 13:05:26 End 2024.05.20 @ 13:28:31 Sessions 1 Manual Loads 0 Difficulty Rogue Special Mode None Game No. 158 Rogue 158 Adventurer 0 Explorer 0 Win Type - Total 1 Types 1/0/0/0/0/0/0/0/0 Lore% 52 Gallery% 66 Achievement% 54 Wizard Run 0 Options --------- Layout 0 ASCII 0 Keyboard 0 Movement Numpad Keybinds 0 Fullscreen 2 Font 18/SmallcapsGlow Map View 76x50 Zoom Use 0% Tactical HUD 1 Map Filters NONE Filters NONE Steam 1 RUN: 4d77ca67-cd0a-40dd-86de-c70ba6bcf92b